[Event "Titled Tuesday Blitz January 25 2022"]
[White "Azadaliyev, Jahandar"]
[Black "Osmak, Yuliia"]
[WhiteFideId "13425811"]
[BlackFideId "14101602"]
[WhiteElo "1795"]
[BlackElo "2302"]
[Result "1-0"]
[Round "06"]
[TimeControl "180+1"]
[Date "2022.01.26"]
[WhiteClock "0:00:11"]
[BlackClock "0:00:05"]

1. d4 {[%clk 0:03:00]}  Nf6 {[%clk 0:02:59]} 2. c4 {[%clk 0:02:59]}  e6 {[%clk 0:02:59]} 3. Nf3 {[%clk 0:02:57]}  b6 {[%clk 0:02:58]} 4. g3 {[%clk 0:02:56]}  Bb7 {[%clk 0:02:58]} 5. Nbd2 {[%clk 0:02:54]}  c5 {[%clk 0:02:52]} 6. dxc5 {[%clk 0:02:46]}  Bxc5 {[%clk 0:02:51]} 7. Bg2 {[%clk 0:02:46]}  O-O {[%clk 0:02:50]} 8. O-O {[%clk 0:02:46]}  d5 {[%clk 0:02:44]} 9. Nb3 {[%clk 0:02:38]}  Be7 {[%clk 0:02:33]} 10. Ne5 {[%clk 0:02:25]}  Nbd7 {[%clk 0:02:31]} 11. Nxd7 {[%clk 0:02:20]}  Qxd7 {[%clk 0:02:31]} 12. Bg5 {[%clk 0:02:17]}  Rfd8 {[%clk 0:02:22]} 13. Qc2 {[%clk 0:02:02]}  Rac8 {[%clk 0:02:13]} 14. Rfd1 {[%clk 0:01:46]}  Rxc4 {[%clk 0:02:00]} 15. Qd3 {[%clk 0:01:45]}  Qc7 {[%clk 0:01:53]} 16. Nd4 {[%clk 0:01:42]}  h6 {[%clk 0:01:40]} 17. Be3 {[%clk 0:01:18]}  Qb8 {[%clk 0:01:30]} 18. Bf4 {[%clk 0:01:14]}  Bd6 {[%clk 0:01:12]} 19. Be3 {[%clk 0:01:02]}  a6 {[%clk 0:01:01]} 20. b3 {[%clk 0:00:55]}  Rc7 {[%clk 0:00:55]} 21. h4 {[%clk 0:00:43]}  Rdc8 {[%clk 0:00:54]} 22. Qd2 {[%clk 0:00:39]}  Ng4 {[%clk 0:00:51]} 23. Bf4 {[%clk 0:00:36]}  Bxf4 {[%clk 0:00:35]} 24. Qxf4 {[%clk 0:00:37]}  Nf6 {[%clk 0:00:35]} 25. Qd2 {[%clk 0:00:31]}  Rc5 {[%clk 0:00:31]} 26. Bf3 {[%clk 0:00:28]}  Qe5 {[%clk 0:00:28]} 27. e3 {[%clk 0:00:27]}  Ne4 {[%clk 0:00:27]} 28. Qd3 {[%clk 0:00:26]}  Nc3 {[%clk 0:00:18]} 29. Rdc1 {[%clk 0:00:20]}  Nb5 {[%clk 0:00:15]} 30. Rd1 {[%clk 0:00:18]}  Qf6 {[%clk 0:00:12]} 31. Nxb5 {[%clk 0:00:16]}  Rxb5 {[%clk 0:00:11]} 32. Bg2 {[%clk 0:00:15]}  Rbc5 {[%clk 0:00:11]} 33. Rab1 {[%clk 0:00:12]}  Rc3 {[%clk 0:00:12]} 34. Qf1 {[%clk 0:00:11]}  Rc2 {[%clk 0:00:12]} 35. a4 {[%clk 0:00:10]}  Ra2 {[%clk 0:00:11]} 36. Rbc1 {[%clk 0:00:08]}  Rcc2 {[%clk 0:00:11]} 37. Rxc2 {[%clk 0:00:07]}  Rxc2 {[%clk 0:00:11]} 38. Qe1 {[%clk 0:00:06]}  Qc3 {[%clk 0:00:11]} 39. Qf1 {[%clk 0:00:06]}  Rd2 {[%clk 0:00:10]} 40. Rc1 {[%clk 0:00:06]}  Rc2 {[%clk 0:00:11]} 41. Rb1 {[%clk 0:00:05]}  Rb2 {[%clk 0:00:10]} 42. Rc1 {[%clk 0:00:05]}  Qxb3 {[%clk 0:00:10]} 43. Rc7 {[%clk 0:00:05]}  Rb1 {[%clk 0:00:08]} 44. Rc1 {[%clk 0:00:05]}  Rxc1 {[%clk 0:00:08]} 45. Qxc1 {[%clk 0:00:06]}  Qc4 {[%clk 0:00:08]} 46. Qb2 {[%clk 0:00:06]}  Qc5 {[%clk 0:00:08]} 47. Bf1 {[%clk 0:00:05]}  Bc6 {[%clk 0:00:07]} 48. Bxa6 {[%clk 0:00:03]}  Bxa4 {[%clk 0:00:07]} 49. Bd3 {[%clk 0:00:04]}  b5 {[%clk 0:00:07]} 50. Qe5 {[%clk 0:00:03]}  g6 {[%clk 0:00:05]} 51. h5 {[%clk 0:00:03]}  gxh5 {[%clk 0:00:04]} 52. Qxh5 {[%clk 0:00:02]}  Kg7 {[%clk 0:00:04]} 53. Qg4+ {[%clk 0:00:02]}  Kf8 {[%clk 0:00:04]} 54. Qf4 {[%clk 0:00:03]}  Ke7 {[%clk 0:00:04]} 55. Qxh6 {[%clk 0:00:04]}  Qc3 {[%clk 0:00:04]} 56. Qg5+ {[%clk 0:00:03]}  Qf6 {[%clk 0:00:05]} 57. Qg4 {[%clk 0:00:03]}  Bb3 {[%clk 0:00:04]} 58. Qb4+ {[%clk 0:00:03]}  Ke8 {[%clk 0:00:04]} 59. Qxb3 {[%clk 0:00:04]}  Qa1+ {[%clk 0:00:03]} 60. Kg2 {[%clk 0:00:04]}  Qa5 {[%clk 0:00:04]} 61. Qxb5+ {[%clk 0:00:05]}  Qxb5 {[%clk 0:00:04]} 62. Bxb5+ {[%clk 0:00:06]}  Ke7 {[%clk 0:00:04]} 63. Kf3 {[%clk 0:00:07]}  e5 {[%clk 0:00:04]} 64. Bf1 {[%clk 0:00:08]}  Kd6 {[%clk 0:00:05]} 65. e4 {[%clk 0:00:08]}  d4 {[%clk 0:00:05]} 66. Ke2 {[%clk 0:00:08]}  f6 {[%clk 0:00:05]} 67. Kd3 {[%clk 0:00:09]}  Kc5 {[%clk 0:00:06]} 68. g4 {[%clk 0:00:10]}  Kd6 {[%clk 0:00:05]} 69. f4 {[%clk 0:00:09]}  exf4 {[%clk 0:00:05]} 70. Kxd4 {[%clk 0:00:10]}  f3 {[%clk 0:00:04]} 71. Ke3 {[%clk 0:00:10]}  f2 {[%clk 0:00:05]} 72. Kxf2 {[%clk 0:00:10]}  Ke5 {[%clk 0:00:05]} 73. Ke3 {[%clk 0:00:11]} 1-0


[Site "https://www.chess.com"]

[Event "Titled Tuesday Blitz January 25 2022"]
[White "Belov, Vladimir"]
[Black "Navalgund, Niranjan"]
[WhiteFideId "4132394"]
[BlackFideId "5030854"]
[WhiteElo "2501"]
[BlackElo "2290"]
[Result "0-1"]
[Round "06"]
[TimeControl "180+1"]
[Date "2022.01.26"]
[WhiteClock "0:00:02"]
[BlackClock "0:00:07"]

1. d4 {[%clk 0:03:00]}  Nf6 {[%clk 0:02:59]} 2. c4 {[%clk 0:03:01]}  e6 {[%clk 0:02:50]} 3. Nf3 {[%clk 0:03:00]}  Bb4+ {[%clk 0:02:49]} 4. Nbd2 {[%clk 0:02:59]}  d6 {[%clk 0:02:49]} 5. a3 {[%clk 0:02:45]}  Bxd2+ {[%clk 0:02:49]} 6. Qxd2 {[%clk 0:02:46]}  O-O {[%clk 0:02:50]} 7. e3 {[%clk 0:02:46]}  b6 {[%clk 0:02:49]} 8. Be2 {[%clk 0:02:45]}  Bb7 {[%clk 0:02:48]} 9. b4 {[%clk 0:02:45]}  Nbd7 {[%clk 0:02:47]} 10. Bb2 {[%clk 0:02:42]}  Ne4 {[%clk 0:02:48]} 11. Qc2 {[%clk 0:02:43]}  f5 {[%clk 0:02:49]} 12. O-O {[%clk 0:02:41]}  Qf6 {[%clk 0:02:44]} 13. d5 {[%clk 0:02:11]}  e5 {[%clk 0:02:07]} 14. Ne1 {[%clk 0:01:46]}  Qg5 {[%clk 0:01:39]} 15. f4 {[%clk 0:01:36]}  Qh6 {[%clk 0:01:36]} 16. Bd3 {[%clk 0:01:25]}  Ndf6 {[%clk 0:01:33]} 17. h3 {[%clk 0:00:46]}  Ng3 {[%clk 0:01:15]} 18. Rf3 {[%clk 0:00:45]}  exf4 {[%clk 0:01:06]} 19. exf4 {[%clk 0:00:44]}  Nfe4 {[%clk 0:01:03]} 20. Bxe4 {[%clk 0:00:39]}  Nxe4 {[%clk 0:01:00]} 21. Nd3 {[%clk 0:00:37]}  Rae8 {[%clk 0:00:58]} 22. a4 {[%clk 0:00:38]}  Re7 {[%clk 0:00:53]} 23. a5 {[%clk 0:00:38]}  Rfe8 {[%clk 0:00:53]} 24. Bd4 {[%clk 0:00:33]}  b5 {[%clk 0:00:45]} 25. a6 {[%clk 0:00:29]}  Ba8 {[%clk 0:00:43]} 26. cxb5 {[%clk 0:00:21]}  Bxd5 {[%clk 0:00:43]} 27. Re3 {[%clk 0:00:19]}  g5 {[%clk 0:00:27]} 28. fxg5 {[%clk 0:00:16]}  Qxg5 {[%clk 0:00:27]} 29. Rf1 {[%clk 0:00:15]}  Ng3 {[%clk 0:00:19]} 30. Rxe7 {[%clk 0:00:13]}  Rxe7 {[%clk 0:00:18]} 31. Rf2 {[%clk 0:00:11]}  Ne4 {[%clk 0:00:14]} 32. Re2 {[%clk 0:00:10]}  f4 {[%clk 0:00:13]} 33. Qc1 {[%clk 0:00:10]}  Rf7 {[%clk 0:00:12]} 34. Bxa7 {[%clk 0:00:06]}  Qg3 {[%clk 0:00:12]} 35. Ne1 {[%clk 0:00:01]}  f3 {[%clk 0:00:11]} 36. Nxf3 {[%clk 0:00:02]}  Rxf3 {[%clk 0:00:11]} 37. Qd1 {[%clk 0:00:02]}  Rf5 {[%clk 0:00:08]} 38. Bd4 {[%clk 0:00:02]}  Ng5 {[%clk 0:00:07]} 0-1


[Site "https://www.chess.com"]

[Event "Titled Tuesday Blitz January 25 2022"]
[White "Blit, Jacques"]
[Black "Kucuksari, Kaan"]
[WhiteFideId "114839"]
[BlackFideId "6380166"]
[WhiteElo "2390"]
[BlackElo "2305"]
[Result "0-1"]
[Round "06"]
[TimeControl "180+1"]
[Date "2022.01.26"]
[WhiteClock "0:00:14"]
[BlackClock "0:00:03"]

1. e4 {[%clk 0:03:00]}  c6 {[%clk 0:02:53]} 2. d4 {[%clk 0:02:56]}  d5 {[%clk 0:02:53]} 3. Nc3 {[%clk 0:02:57]}  dxe4 {[%clk 0:02:50]} 4. Nxe4 {[%clk 0:02:58]}  Bf5 {[%clk 0:02:51]} 5. Ng3 {[%clk 0:02:56]}  Bg6 {[%clk 0:02:51]} 6. Nf3 {[%clk 0:02:56]}  Nd7 {[%clk 0:02:49]} 7. h4 {[%clk 0:02:57]}  h6 {[%clk 0:02:49]} 8. Bd3 {[%clk 0:02:58]}  Bxd3 {[%clk 0:02:49]} 9. Qxd3 {[%clk 0:02:58]}  e6 {[%clk 0:02:50]} 10. Bd2 {[%clk 0:02:59]}  Ngf6 {[%clk 0:02:50]} 11. O-O-O {[%clk 0:02:59]}  Bd6 {[%clk 0:02:50]} 12. Ne4 {[%clk 0:02:59]}  Nxe4 {[%clk 0:02:50]} 13. Qxe4 {[%clk 0:03:00]}  Nf6 {[%clk 0:02:45]} 14. Qe2 {[%clk 0:03:00]}  a5 {[%clk 0:02:40]} 15. Ne5 {[%clk 0:02:52]}  a4 {[%clk 0:02:39]} 16. Kb1 {[%clk 0:02:50]}  a3 {[%clk 0:02:39]} 17. b3 {[%clk 0:02:50]}  b5 {[%clk 0:02:06]} 18. Nxc6 {[%clk 0:02:29]}  Qb6 {[%clk 0:02:05]} 19. Ne5 {[%clk 0:01:56]}  O-O {[%clk 0:02:02]} 20. Bc1 {[%clk 0:01:45]}  Nd5 {[%clk 0:01:47]} 21. Rd3 {[%clk 0:01:44]}  Rfc8 {[%clk 0:01:36]} 22. Qg4 {[%clk 0:01:26]}  Bxe5 {[%clk 0:01:30]} 23. dxe5 {[%clk 0:01:22]}  Qxf2 {[%clk 0:01:31]} 24. Bd2 {[%clk 0:01:14]}  Ra7 {[%clk 0:00:52]} 25. Rc1 {[%clk 0:01:08]}  Rac7 {[%clk 0:00:51]} 26. h5 {[%clk 0:00:50]}  Rxc2 {[%clk 0:00:47]} 27. Rxc2 {[%clk 0:00:33]}  Qf1+ {[%clk 0:00:47]} 28. Rc1 {[%clk 0:00:17]}  Qxd3+ {[%clk 0:00:46]} 29. Ka1 {[%clk 0:00:17]}  Rxc1+ {[%clk 0:00:44]} 30. Bxc1 {[%clk 0:00:18]}  Qc3+ {[%clk 0:00:40]} 31. Kb1 {[%clk 0:00:18]}  Qxe5 {[%clk 0:00:17]} 32. Bxa3 {[%clk 0:00:18]}  Qe1+ {[%clk 0:00:14]} 33. Bc1 {[%clk 0:00:18]}  Nc3+ {[%clk 0:00:14]} 34. Kb2 {[%clk 0:00:17]}  Ne2 {[%clk 0:00:14]} 35. Bxh6 {[%clk 0:00:16]}  Qc3+ {[%clk 0:00:14]} 36. Kb1 {[%clk 0:00:16]}  Qd3+ {[%clk 0:00:10]} 37. Kb2 {[%clk 0:00:16]}  Qc3+ {[%clk 0:00:07]} 38. Kb1 {[%clk 0:00:15]}  Ng1 {[%clk 0:00:04]} 39. Bc1 {[%clk 0:00:13]}  Qd3+ {[%clk 0:00:04]} 40. Kb2 {[%clk 0:00:14]}  Ne2 {[%clk 0:00:04]} 41. Bh6 {[%clk 0:00:14]}  g6 {[%clk 0:00:03]} 42. hxg6 {[%clk 0:00:14]}  fxg6 {[%clk 0:00:03]} 43. Qxe6+ {[%clk 0:00:14]}  Kh7 {[%clk 0:00:04]} 44. Bg5 {[%clk 0:00:12]}  Qc3+ {[%clk 0:00:03]} 45. Kb1 {[%clk 0:00:13]}  Qe1+ {[%clk 0:00:02]} 46. Kc2 {[%clk 0:00:13]}  Nd4+ {[%clk 0:00:02]} 47. Kd3 {[%clk 0:00:14]}  Nxe6 {[%clk 0:00:03]} 0-1


[Site "https://www.chess.com"]

[Event "Titled Tuesday Blitz January 25 2022"]
[White "Bryakin, Mikhail"]
[Black "Kim, Sergey"]
[WhiteFideId "4165314"]
[BlackFideId "13700570"]
[WhiteElo "2421"]
[BlackElo "2619"]
[Result "1-0"]
[Round "06"]
[TimeControl "180+1"]
[Date "2022.01.26"]
[WhiteClock "0:01:14"]
[BlackClock "0:00:21"]

1. e4 {[%clk 0:02:57]}  e5 {[%clk 0:02:59]} 2. d4 {[%clk 0:02:31]}  exd4 {[%clk 0:02:59]} 3. Qxd4 {[%clk 0:02:28]}  Nc6 {[%clk 0:02:58]} 4. Qd3 {[%clk 0:02:28]}  Nf6 {[%clk 0:02:56]} 5. Nc3 {[%clk 0:02:28]}  Be7 {[%clk 0:02:50]} 6. a3 {[%clk 0:02:27]}  O-O {[%clk 0:02:49]} 7. Bd2 {[%clk 0:02:27]}  d6 {[%clk 0:02:49]} 8. O-O-O {[%clk 0:02:27]}  a6 {[%clk 0:02:44]} 9. f4 {[%clk 0:02:27]}  b5 {[%clk 0:02:38]} 10. Nd5 {[%clk 0:02:27]}  Nxd5 {[%clk 0:02:31]} 11. exd5 {[%clk 0:02:27]}  Nb8 {[%clk 0:02:31]} 12. Nf3 {[%clk 0:02:24]}  f6 {[%clk 0:01:51]} 13. Nd4 {[%clk 0:02:17]}  f5 {[%clk 0:01:46]} 14. g3 {[%clk 0:02:12]}  Bf6 {[%clk 0:01:44]} 15. Bg2 {[%clk 0:01:53]}  Nd7 {[%clk 0:01:29]} 16. Ne6 {[%clk 0:01:51]}  Nc5 {[%clk 0:01:30]} 17. Nxc5 {[%clk 0:01:46]}  dxc5 {[%clk 0:01:27]} 18. d6 {[%clk 0:01:45]}  Ra7 {[%clk 0:01:20]} 19. Qd5+ {[%clk 0:01:45]}  Kh8 {[%clk 0:01:19]} 20. Qxc5 {[%clk 0:01:46]}  Rb7 {[%clk 0:01:12]} 21. Bxb7 {[%clk 0:01:43]}  Bxb7 {[%clk 0:01:12]} 22. Qxc7 {[%clk 0:01:38]}  Bxh1 {[%clk 0:01:05]} 23. Rxh1 {[%clk 0:01:33]}  Qa8 {[%clk 0:01:05]} 24. Rd1 {[%clk 0:01:31]}  Rc8 {[%clk 0:00:32]} 25. Qd7 {[%clk 0:01:30]}  Rd8 {[%clk 0:00:30]} 26. Qe6 {[%clk 0:01:22]}  Qc6 {[%clk 0:00:24]} 27. Ba5 {[%clk 0:01:15]}  Rc8 {[%clk 0:00:21]} 28. c3 {[%clk 0:01:14]} 1-0


[Site "https://www.chess.com"]

[Event "Titled Tuesday Blitz January 25 2022"]
[White "Djordjevic, Vuk"]
[Black "Zhigalko, Sergei"]
[WhiteFideId "902098"]
[BlackFideId "13502956"]
[WhiteElo "2463"]
[BlackElo "2662"]
[Result "0-1"]
[Round "06"]
[TimeControl "180+1"]
[Date "2022.01.26"]
[WhiteClock "0:00:04"]
[BlackClock "0:00:02"]

1. d4 {[%clk 0:03:00]}  Nf6 {[%clk 0:02:59]} 2. Bg5 {[%clk 0:03:01]}  e6 {[%clk 0:02:57]} 3. e4 {[%clk 0:03:01]}  h6 {[%clk 0:02:57]} 4. Bxf6 {[%clk 0:03:01]}  Qxf6 {[%clk 0:02:58]} 5. c3 {[%clk 0:03:02]}  g6 {[%clk 0:02:54]} 6. e5 {[%clk 0:02:58]}  Qe7 {[%clk 0:02:54]} 7. f4 {[%clk 0:02:58]}  d5 {[%clk 0:02:34]} 8. Nf3 {[%clk 0:02:53]}  h5 {[%clk 0:02:34]} 9. h4 {[%clk 0:02:30]}  c5 {[%clk 0:02:21]} 10. a3 {[%clk 0:02:11]}  c4 {[%clk 0:02:20]} 11. Nbd2 {[%clk 0:01:55]}  Qc7 {[%clk 0:02:16]} 12. b3 {[%clk 0:01:47]}  cxb3 {[%clk 0:02:12]} 13. Qxb3 {[%clk 0:01:46]}  Nc6 {[%clk 0:02:11]} 14. Bd3 {[%clk 0:01:34]}  Be7 {[%clk 0:01:56]} 15. O-O {[%clk 0:01:27]}  Bd7 {[%clk 0:01:55]} 16. Rfc1 {[%clk 0:01:00]}  Na5 {[%clk 0:01:17]} 17. Qa2 {[%clk 0:01:00]}  O-O {[%clk 0:00:29]} 18. c4 {[%clk 0:00:49]}  dxc4 {[%clk 0:00:30]} 19. Nxc4 {[%clk 0:00:50]}  Rfc8 {[%clk 0:00:20]} 20. Nd6 {[%clk 0:00:26]}  Qxc1+ {[%clk 0:00:20]} 21. Rxc1 {[%clk 0:00:26]}  Rxc1+ {[%clk 0:00:20]} 22. Kh2 {[%clk 0:00:27]}  Rc3 {[%clk 0:00:20]} 23. Qe2 {[%clk 0:00:27]}  Bc6 {[%clk 0:00:10]} 24. a4 {[%clk 0:00:19]}  Rd8 {[%clk 0:00:10]} 25. Qd2 {[%clk 0:00:17]}  Rxd3 {[%clk 0:00:04]} 26. Qxd3 {[%clk 0:00:17]}  Bxf3 {[%clk 0:00:04]} 27. Qxf3 {[%clk 0:00:17]}  Bxd6 {[%clk 0:00:05]} 28. exd6 {[%clk 0:00:17]}  Rxd6 {[%clk 0:00:06]} 29. Qc3 {[%clk 0:00:10]}  Nc6 {[%clk 0:00:06]} 30. Qb2 {[%clk 0:00:10]}  Rd7 {[%clk 0:00:04]} 31. Qb5 {[%clk 0:00:10]}  a6 {[%clk 0:00:04]} 32. Qb6 {[%clk 0:00:06]}  Nxd4 {[%clk 0:00:03]} 33. Qa7 {[%clk 0:00:06]}  Nc6 {[%clk 0:00:03]} 34. Qa8+ {[%clk 0:00:06]}  Kg7 {[%clk 0:00:03]} 35. Qc8 {[%clk 0:00:06]}  Re7 {[%clk 0:00:02]} 36. Kh3 {[%clk 0:00:02]}  Nd4 {[%clk 0:00:02]} 37. Qc3 {[%clk 0:00:02]}  Rd7 {[%clk 0:00:02]} 38. Kh2 {[%clk 0:00:02]}  Kh7 {[%clk 0:00:02]} 39. Qc4 {[%clk 0:00:02]}  Nf5 {[%clk 0:00:02]} 40. Kh3 {[%clk 0:00:02]}  Kg7 {[%clk 0:00:01]} 41. Qb3 {[%clk 0:00:02]}  Re7 {[%clk 0:00:01]} 42. Qb2+ {[%clk 0:00:03]}  Kh7 {[%clk 0:00:02]} 43. Qf6 {[%clk 0:00:04]}  Rd7 {[%clk 0:00:02]} 44. Qb2 {[%clk 0:00:03]}  Rd3+ {[%clk 0:00:02]} 45. Kh2 {[%clk 0:00:04]}  Ne3 {[%clk 0:00:02]} 46. Qxb7 {[%clk 0:00:04]}  Ng4+ {[%clk 0:00:02]} 47. Kg1 {[%clk 0:00:04]}  Rd1# {[%clk 0:00:02]} 0-1


[Site "https://www.chess.com"]

[Event "Titled Tuesday Blitz January 25 2022"]
[White "Domingo Nunez, Alejandro"]
[Black "Rastbod, Ali"]
[WhiteFideId "22245561"]
[BlackFideId "12567477"]
[WhiteElo "2215"]
[BlackElo "2200"]
[Result "0-1"]
[Round "06"]
[TimeControl "180+1"]
[Date "2022.01.26"]
[WhiteClock "0:00:04"]
[BlackClock "0:00:31"]

1. c4 {[%clk 0:03:00]}  e5 {[%clk 0:02:59]} 2. g3 {[%clk 0:03:00]}  c6 {[%clk 0:02:58]} 3. Bg2 {[%clk 0:02:53]}  d5 {[%clk 0:02:58]} 4. b3 {[%clk 0:02:53]}  d4 {[%clk 0:02:57]} 5. e3 {[%clk 0:02:54]}  Nf6 {[%clk 0:02:52]} 6. exd4 {[%clk 0:02:49]}  Qxd4 {[%clk 0:02:52]} 7. Nc3 {[%clk 0:02:48]}  Bc5 {[%clk 0:02:52]} 8. Qe2 {[%clk 0:02:42]}  Bg4 {[%clk 0:02:51]} 9. Bf3 {[%clk 0:02:42]}  O-O {[%clk 0:02:37]} 10. Bb2 {[%clk 0:02:40]}  Bxf3 {[%clk 0:02:10]} 11. Nxf3 {[%clk 0:02:41]}  Qd8 {[%clk 0:02:10]} 12. O-O-O {[%clk 0:02:07]}  Re8 {[%clk 0:02:08]} 13. Ne4 {[%clk 0:02:01]}  Nxe4 {[%clk 0:02:05]} 14. Qxe4 {[%clk 0:02:01]}  Nd7 {[%clk 0:02:06]} 15. Rhe1 {[%clk 0:01:28]}  h6 {[%clk 0:02:00]} 16. Qf5 {[%clk 0:01:24]}  Bxf2 {[%clk 0:01:52]} 17. Nxe5 {[%clk 0:00:56]}  Nxe5 {[%clk 0:01:47]} 18. Rxe5 {[%clk 0:00:56]}  Rxe5 {[%clk 0:01:18]} 19. Qxe5 {[%clk 0:00:52]}  f6 {[%clk 0:01:18]} 20. Qe6+ {[%clk 0:00:45]}  Kh8 {[%clk 0:01:17]} 21. d4 {[%clk 0:00:41]}  Qe8 {[%clk 0:01:16]} 22. Qxe8+ {[%clk 0:00:22]}  Rxe8 {[%clk 0:01:17]} 23. Kd2 {[%clk 0:00:23]}  Kg8 {[%clk 0:01:09]} 24. Rf1 {[%clk 0:00:13]}  Be3+ {[%clk 0:01:05]} 25. Kd3 {[%clk 0:00:13]}  Kf7 {[%clk 0:00:55]} 26. h4 {[%clk 0:00:12]}  h5 {[%clk 0:00:55]} 27. Ba3 {[%clk 0:00:10]}  Bh6 {[%clk 0:00:51]} 28. Rf3 {[%clk 0:00:09]}  g6 {[%clk 0:00:47]} 29. Bc5 {[%clk 0:00:09]}  b6 {[%clk 0:00:46]} 30. Bd6 {[%clk 0:00:10]}  Rd8 {[%clk 0:00:47]} 31. Bc7 {[%clk 0:00:10]}  Rd7 {[%clk 0:00:46]} 32. Be5 {[%clk 0:00:10]}  f5 {[%clk 0:00:45]} 33. a4 {[%clk 0:00:10]}  Bg7 {[%clk 0:00:45]} 34. Re3 {[%clk 0:00:10]}  Bh6 {[%clk 0:00:41]} 35. Re1 {[%clk 0:00:09]}  Bf8 {[%clk 0:00:39]} 36. Re2 {[%clk 0:00:09]}  Bb4 {[%clk 0:00:39]} 37. Bf4 {[%clk 0:00:08]}  a5 {[%clk 0:00:38]} 38. Be5 {[%clk 0:00:07]}  Be7 {[%clk 0:00:35]} 39. Rd2 {[%clk 0:00:05]}  g5 {[%clk 0:00:34]} 40. hxg5 {[%clk 0:00:06]}  Bxg5 {[%clk 0:00:34]} 41. Rf2 {[%clk 0:00:07]}  Kg6 {[%clk 0:00:35]} 42. Re2 {[%clk 0:00:05]}  h4 {[%clk 0:00:34]} 43. gxh4 {[%clk 0:00:04]}  Bxh4 {[%clk 0:00:35]} 44. Rg2+ {[%clk 0:00:05]}  Kh5 {[%clk 0:00:36]} 45. Bf4 {[%clk 0:00:05]}  Bf6 {[%clk 0:00:35]} 46. Rg4 {[%clk 0:00:04]}  Kxg4 {[%clk 0:00:31]} 0-1


[Site "https://www.chess.com"]

[Event "Titled Tuesday Blitz January 25 2022"]
[White "Donchenko, Alexander"]
[Black "Suarez Uriel, Adrian"]
[WhiteFideId "24603295"]
[BlackFideId "22230874"]
[WhiteElo "2539"]
[BlackElo "2316"]
[Result "1-0"]
[Round "06"]
[TimeControl "180+1"]
[Date "2022.01.26"]
[WhiteClock "0:01:13"]
[BlackClock "0:01:07"]

1. d4 {[%clk 0:03:00]}  Nf6 {[%clk 0:02:59]} 2. c4 {[%clk 0:03:01]}  g6 {[%clk 0:03:00]} 3. g3 {[%clk 0:03:01]}  Bg7 {[%clk 0:02:57]} 4. Bg2 {[%clk 0:03:02]}  c6 {[%clk 0:02:58]} 5. e4 {[%clk 0:03:00]}  O-O {[%clk 0:02:57]} 6. Nc3 {[%clk 0:03:00]}  d5 {[%clk 0:02:56]} 7. cxd5 {[%clk 0:02:55]}  cxd5 {[%clk 0:02:57]} 8. e5 {[%clk 0:02:55]}  Ne8 {[%clk 0:02:56]} 9. Nxd5 {[%clk 0:02:52]}  Nc6 {[%clk 0:02:56]} 10. Be3 {[%clk 0:02:48]}  Nc7 {[%clk 0:02:46]} 11. Nxc7 {[%clk 0:02:46]}  Qxc7 {[%clk 0:02:47]} 12. Ne2 {[%clk 0:02:45]}  Rd8 {[%clk 0:02:47]} 13. f4 {[%clk 0:02:26]}  Bg4 {[%clk 0:02:45]} 14. O-O {[%clk 0:01:57]}  Bxe2 {[%clk 0:02:43]} 15. Qxe2 {[%clk 0:01:57]}  Nxd4 {[%clk 0:02:44]} 16. Qf2 {[%clk 0:01:56]}  Nf5 {[%clk 0:02:42]} 17. Bxa7 {[%clk 0:01:52]}  Qc4 {[%clk 0:01:29]} 18. Rfc1 {[%clk 0:01:39]}  Qa6 {[%clk 0:01:29]} 19. Bb6 {[%clk 0:01:37]}  Rd7 {[%clk 0:01:29]} 20. a4 {[%clk 0:01:32]}  e6 {[%clk 0:01:26]} 21. Bf1 {[%clk 0:01:31]}  Rd2 {[%clk 0:01:12]} 22. Bxa6 {[%clk 0:01:24]}  Rxf2 {[%clk 0:01:12]} 23. Bxb7 {[%clk 0:01:15]}  Rxb2 {[%clk 0:01:11]} 24. Bxa8 {[%clk 0:01:14]}  Rxb6 {[%clk 0:01:11]} 25. a5 {[%clk 0:01:15]}  Rb2 {[%clk 0:01:09]} 26. a6 {[%clk 0:01:13]}  Bf8 {[%clk 0:01:09]} 27. Rc8 {[%clk 0:01:13]}  Kg7 {[%clk 0:01:09]} 28. Rxf8 {[%clk 0:01:13]}  Kxf8 {[%clk 0:01:07]} 29. a7 {[%clk 0:01:13]} 1-0


[Site "https://www.chess.com"]

[Event "Titled Tuesday Blitz January 25 2022"]
[White "Erdogdu, Mert"]
[Black "Lavrov, Maxim"]
[WhiteFideId "6301495"]
[BlackFideId "4166418"]
[WhiteElo "2485"]
[BlackElo "2192"]
[Result "1-0"]
[Round "06"]
[TimeControl "180+1"]
[Date "2022.01.26"]
[WhiteClock "0:00:10"]
[BlackClock "0:00:06"]

1. e4 {[%clk 0:03:00]}  e5 {[%clk 0:02:57]} 2. f4 {[%clk 0:03:00]}  exf4 {[%clk 0:02:56]} 3. Nf3 {[%clk 0:03:00]}  d5 {[%clk 0:02:57]} 4. exd5 {[%clk 0:03:00]}  Nf6 {[%clk 0:02:56]} 5. d4 {[%clk 0:02:58]}  Nxd5 {[%clk 0:02:51]} 6. Bc4 {[%clk 0:02:58]}  c6 {[%clk 0:02:49]} 7. O-O {[%clk 0:02:57]}  Bd6 {[%clk 0:02:49]} 8. Nc3 {[%clk 0:02:54]}  Be6 {[%clk 0:02:45]} 9. Bb3 {[%clk 0:02:52]}  O-O {[%clk 0:02:43]} 10. Ne4 {[%clk 0:02:51]}  Bc7 {[%clk 0:02:32]} 11. Nc5 {[%clk 0:02:47]}  Bc8 {[%clk 0:02:29]} 12. Nd3 {[%clk 0:02:29]}  Nd7 {[%clk 0:02:19]} 13. Bxd5 {[%clk 0:02:28]}  cxd5 {[%clk 0:02:18]} 14. Bxf4 {[%clk 0:02:28]}  Bxf4 {[%clk 0:02:17]} 15. Nxf4 {[%clk 0:02:29]}  Nf6 {[%clk 0:02:16]} 16. Qd3 {[%clk 0:02:24]}  Ne4 {[%clk 0:02:14]} 17. c4 {[%clk 0:02:04]}  Bf5 {[%clk 0:02:12]} 18. Nxd5 {[%clk 0:01:59]}  Ng3 {[%clk 0:02:09]} 19. Qa3 {[%clk 0:01:59]}  Nxf1 {[%clk 0:01:56]} 20. Ne7+ {[%clk 0:01:59]}  Kh8 {[%clk 0:01:56]} 21. Nxf5 {[%clk 0:01:59]}  Qf6 {[%clk 0:01:49]} 22. Nd6 {[%clk 0:01:43]}  Nd2 {[%clk 0:01:44]} 23. Ne5 {[%clk 0:01:37]}  Rad8 {[%clk 0:01:31]} 24. c5 {[%clk 0:01:32]}  Qf4 {[%clk 0:01:25]} 25. Qd3 {[%clk 0:01:15]}  b6 {[%clk 0:01:06]} 26. g3 {[%clk 0:01:11]}  Qf6 {[%clk 0:00:56]} 27. b4 {[%clk 0:01:01]}  bxc5 {[%clk 0:00:50]} 28. bxc5 {[%clk 0:01:01]}  Qe6 {[%clk 0:00:41]} 29. Qxd2 {[%clk 0:01:00]}  f6 {[%clk 0:00:41]} 30. Nec4 {[%clk 0:00:55]}  Qd5 {[%clk 0:00:39]} 31. Re1 {[%clk 0:00:50]}  f5 {[%clk 0:00:36]} 32. Re7 {[%clk 0:00:40]}  f4 {[%clk 0:00:35]} 33. gxf4 {[%clk 0:00:26]}  Rf6 {[%clk 0:00:34]} 34. Ne5 {[%clk 0:00:24]}  Rdf8 {[%clk 0:00:29]} 35. f5 {[%clk 0:00:22]}  Rb8 {[%clk 0:00:18]} 36. Qd1 {[%clk 0:00:15]}  Qxa2 {[%clk 0:00:11]} 37. Nd7 {[%clk 0:00:12]}  Rff8 {[%clk 0:00:08]} 38. Nxb8 {[%clk 0:00:11]}  Rxb8 {[%clk 0:00:09]} 39. c6 {[%clk 0:00:10]}  h6 {[%clk 0:00:07]} 40. c7 {[%clk 0:00:10]}  Rb1 {[%clk 0:00:07]} 41. c8=Q+ {[%clk 0:00:11]}  Kh7 {[%clk 0:00:07]} 42. Rxg7+ {[%clk 0:00:10]}  Kxg7 {[%clk 0:00:06]} 43. Qd7+ {[%clk 0:00:11]}  Kf6 {[%clk 0:00:07]} 44. Qe6+ {[%clk 0:00:11]}  Kg5 {[%clk 0:00:07]} 45. Qg6+ {[%clk 0:00:11]}  Kf4 {[%clk 0:00:07]} 46. Qg4+ {[%clk 0:00:11]}  Ke3 {[%clk 0:00:06]} 47. Qe4# {[%clk 0:00:10]} 1-0


[Site "https://www.chess.com"]